fUST/lending_fUST_20250324
["ID","MTS","AMOUNT","RATE_DAILY","PERIOD"]
[356603039,1742779832386,-400.0,0.00016892,2]
[356603041,1742779832395,-5252.07450618,0.00017245,2]
[356603042,1742779832405,-823.0,0.00018259,2]
[356603043,1742779832414,-5252.07450618,0.00018417,2]
[356603044,1742779832423,-158.99,0.000186,2]
[356603045,1742779832433,-662.0,0.000191,2]
[356603046,1742779832442,-500.0,0.00019213,2]
[356603047,1742779832451,-1298.2488664,0.00019399,2]
[356603048,1742779832461,-5252.07450618,0.0001959,2]
[356603049,1742779832470,-834.51197368,0.00019779,2]
[356603050,1742779832480,-1000.0,0.000198,2]
[356603051,1742779832492,-1000.0,0.000198,3]
[356603052,1742779832502,-500.0,0.00019873,2]
[356603053,1742779832511,-457.5,0.0001989,3]
[356603054,1742779832520,-686.26,0.0001989,3]
[356603055,1742779832530,-343.13,0.0001989,3]
[356603056,1742779832540,-171.56,0.0001989,3]
[356603057,1742779832550,-514.73,0.0001989,3]
[356603058,1742779832559,-400.0,0.00019892,2]
[356603059,1742779832569,-10313.24562082,0.000199,2]
[356603060,1742779832589,-471.43554143,0.000199,2]
[356603123,1742779846240,-402.04667673,0.00018416,2]
[356603124,1742779846251,-178.89099583,0.000199,2]
[356603132,1742780845088,-453.4,0.000141,2]
[356603133,1742780845109,-592.57037,0.000142,5]
[356603134,1742780845129,-158.22635604,0.00015691,2]
[356603135,1742780845150,-400.0,0.00017402,2]
[356603136,1742780845171,-300.0,0.00017452,2]
[356603137,1742780845193,-500.0,0.00017453,2]
[356603138,1742780845227,-500.0,0.00017453,2]
[356603139,1742780845251,-459.97603696,0.00017453,2]
[356603140,1742780845273,-500.0,0.00017453,2]
[356603141,1742780845296,-500.0,0.00017453,2]
[356603142,1742780845318,-497.16683169,0.00017453,2]
[356603143,1742780845558,-500.0,0.00017453,2]
[356603144,1742780845584,-500.0,0.00017453,2]
[356603145,1742780845607,-500.0,0.00017453,2]
[356603146,1742780845628,-500.0,0.00017453,2]
[356603147,1742780845650,-2898.91912122,0.00017454,2]
[356603175,1742781032317,-408.06,0.000142,2]
[356603176,1742781032326,-2761.40096493,0.00017454,2]
[356603179,1742781032452,-445.00743001,0.00017454,2]
[356603180,1742781032525,-908.43907949,0.00017454,2]
[356603239,1742781043437,-400.0,0.00017402,2]
[356603241,1742781043446,-97.15416772,0.00017454,2]
[356603249,1742781046174,-388.76695723,0.00017454,2]
[356603250,1742781046184,-232.5130613,0.00017454,2]
[356603251,1742781046194,-163.5769275,0.00017869,2]
[356603252,1742781046204,-300.0,0.00018899,2]
[356603253,1742781046214,-384.44178188,0.00018899,2]
[356603254,1742781046224,-1406.92005477,0.000189,2]
[356603255,1742781046234,-4393.05970904,0.000189,2]
[356603256,1742781046243,-281.43267371,0.00018999,2]
[356603257,1742781046252,-22807.88374729,0.00019,7]
[356603258,1742781046264,-381.92818453,0.00019,7]
[356603259,1742781046276,-1441.6727147,0.00019,7]
[356603260,1742781046287,-27058.90678769,0.00019,7]
[356603261,1742781046296,-159.13,0.00019,2]
[356603262,1742781046307,-834.51197368,0.00019,7]
[356603263,1742781046318,-160.0,0.00019284,2]
[356603264,1742781046328,-418.2242758,0.00019284,2]
[356603265,1742781046338,-834.51197368,0.0001929,2]
[356603266,1742781046347,-973.6866498,0.00019399,2]
[356603267,1742781046357,-175.2299716,0.00019681,2]
[356603268,1742781046367,-12458.93820146,0.00019774,2]
[356603269,1742781046376,-160.0,0.00019774,2]
[356603270,1742781046386,-152.72902839,0.0001978,2]
[356603271,1742781046395,-2858.66170241,0.00019781,2]
[356603272,1742781046404,-1008.21,0.000198,3]
[356603273,1742781046413,-1008.21,0.000198,4]
[356603274,1742781046422,-14577.89440928,0.000198,2]
[356603281,1742782027127,-367.26,0.000142,2]
[356603282,1742782027150,-150.0,0.00016,2]
[356603283,1742782027173,-400.0,0.00017402,2]
[356603284,1742782027194,-3141.0483742,0.00017454,2]
[356603285,1742782027214,-163.2439491,0.00017594,2]
[356603286,1742782027234,-300.0,0.00019316,2]
[356603287,1742782027256,-4050.32995356,0.00019317,2]
[356603315,1742782232531,-330.53,0.000143,2]
[356603316,1742782232541,-312.0,0.0001929,120]
[356603317,1742782232551,-834.51197368,0.00019292,2]
[356603318,1742782232561,-160.0,0.00019298,2]
[356603319,1742782232571,-418.2242758,0.00019298,2]
[356603320,1742782232580,-160.0,0.00019298,2]
[356603321,1742782232589,-4108.68182799,0.00019299,2]
[356603322,1742782232599,-160.0,0.00019299,2]
[356603323,1742782232608,-907.3368077,0.00019303,2]
[356603324,1742782232618,-300.0,0.00019304,2]
[356603325,1742782232628,-480.04173823,0.00019615,2]
[356603326,1742782232638,-500.0,0.00019699,2]
[356603327,1742782232647,-500.0,0.00019699,2]
[356603328,1742782232656,-500.0,0.00019699,2]
[356603329,1742782232666,-1227.26077016,0.000197,2]
[356603330,1742782232676,-500.0,0.000197,2]
[356603331,1742782232685,-1486.15011329,0.0001979,2]
[356603332,1742782232695,-197.0028716,0.00019799,2]
[356603333,1742782232705,-1007.52,0.000198,7]
[356603334,1742782232718,-20466.84591343,0.000198,2]
[356603358,1742782243494,-242.17891737,0.00019699,2]
[356603359,1742782243503,-210.6395068,0.00019699,2]
[356603361,1742782243515,-289.3604932,0.00019699,2]
[356603362,1742782243524,-2071.68998573,0.000198,2]
[356603363,1742782243599,-500.0,0.000198,2]
[356603371,1742783248119,-297.48,0.000145,2]
[356603372,1742783248142,-400.0,0.00017958,2]
[356603373,1742783248164,-160.0,0.00019219,2]
[356603374,1742783248188,-160.0,0.00019219,2]
[356603375,1742783248210,-418.2974228,0.00019219,2]
[356603376,1742783248233,-300.0,0.00019225,2]
[356603377,1742783248254,-8893.91269215,0.00019226,2]
[356603383,1742783368098,-175.31317591,0.000147,2]
[356603404,1742783432730,-92.41682409,0.000147,2]
[356603405,1742783432743,-834.65560377,0.00019208,2]
[356603406,1742783432753,-12458.93820146,0.00019208,2]
[356603407,1742783432762,-300.0,0.00019213,2]
[356603408,1742783432771,-160.0,0.00019213,2]
[356603409,1742783432780,-160.0,0.00019213,2]
[356603410,1742783432790,-418.2974228,0.00019213,2]
[356603412,1742783432799,-680.5026057,0.00019303,2]
[356603414,1742783432808,-242.16582792,0.000197,2]
[356603416,1742783432818,-1319.61384744,0.000197,2]
[356603418,1742783432827,-4233.85,0.00019783,7]
[356603420,1742783432836,-184.25196955,0.00019798,2]
[356603422,1742783432846,-1429.33085121,0.00019799,2]
[356603424,1742783432855,-159.13,0.00019799,2]
[356603426,1742783432864,-224018.89488603,0.00019799,2]
[356603470,1742784447114,-286.3,0.000148,2]
[356603471,1742784447136,-162.106092,0.00018,2]
[356603472,1742784447156,-400.0,0.00018513,2]
[356603473,1742784447176,-834.65560377,0.0001904,2]
[356603474,1742784447197,-160.0,0.0001904,2]
[356603475,1742784447218,-160.0,0.0001904,2]
[356603476,1742784447240,-418.2974228,0.0001904,2]
[356603477,1742784447259,-3565.02550931,0.0001904,2]
[356603478,1742784447280,-300.0,0.00019045,2]
[356603479,1742784447300,-336.22631331,0.00019119,2]
[356603480,1742784447322,-500.0,0.00019203,2]
[356603481,1742784447344,-500.0,0.00019203,2]
[356603482,1742784447366,-500.0,0.00019203,2]
[356603483,1742784447387,-500.0,0.00019203,2]
[356603484,1742784447409,-503.24227301,0.00019203,2]
[356603485,1742784447431,-500.0,0.00019203,2]
[356603486,1742784447452,-221.34864162,0.00019203,2]
[356603509,1742784637655,-257.67,0.000148,2]
[356603510,1742784637665,-1050.0,0.00019,7]
[356603511,1742784637674,-834.65560377,0.00019196,2]
[356603512,1742784637684,-501.23383316,0.00019201,2]
[356603513,1742784637693,-500.0,0.00019201,2]
[356603514,1742784637702,-500.0,0.00019201,2]
[356603515,1742784637711,-500.0,0.00019201,2]
[356603516,1742784637720,-500.0,0.00019201,2]
[356603517,1742784637729,-500.0,0.00019201,2]
[356603518,1742784637739,-500.0,0.00019201,2]
[356603519,1742784637748,-500.0,0.00019201,2]
[356603521,1742784637758,-500.0,0.00019201,2]
[356603522,1742784637767,-500.0,0.00019201,2]
[356603523,1742784637777,-500.0,0.00019201,2]
[356603524,1742784637786,-500.0,0.00019201,2]
[356603525,1742784637795,-500.0,0.00019201,2]
[356603526,1742784637805,-500.0,0.00019201,2]
[356603527,1742784637814,-500.0,0.00019201,2]
[356603528,1742784637823,-500.0,0.00019201,2]
[356603529,1742784637832,-373.3358125,0.00019201,2]
[356603530,1742784637842,-500.0,0.00019201,2]
[356603531,1742784637851,-500.0,0.00019201,2]
[356603532,1742784637860,-500.0,0.00019201,2]
[356603533,1742784637869,-500.0,0.00019201,2]
[356603534,1742784637880,-500.0,0.00019201,2]
[356603535,1742784637889,-500.0,0.00019201,2]
[356603536,1742784637899,-500.0,0.00019201,2]
[356603537,1742784637908,-500.0,0.00019201,2]
[356603538,1742784637917,-500.0,0.00019201,2]
[356603539,1742784637926,-500.0,0.00019201,2]
[356603540,1742784637935,-300.0,0.00019201,2]
[356603541,1742784637945,-10231.7827087,0.00019202,3]
[356603542,1742784637955,-834.65560377,0.00019202,3]
[356603543,1742784637964,-160.0,0.00019202,2]
[356603544,1742784637973,-418.2974228,0.00019202,2]
[356603545,1742784637983,-2230.752,0.00019203,2]
[356603546,1742784637992,-159.14,0.00019205,2]
[356603547,1742784638001,-609.9798532,0.00019205,2]
[356603548,1742784638010,-202.48413883,0.00019799,2]
[356603549,1742784638019,-185.01176892,0.00019799,2]
[356603550,1742784638029,-4139.10952519,0.000198,2]
[356603551,1742784638038,-1396.19453395,0.000198,2]
[356603552,1742784638047,-1121.07159305,0.00019845,2]
[356603553,1742784638056,-503.05116408,0.00019873,2]
[356603554,1742784638066,-500.0,0.00019873,2]
[356603555,1742784638226,-500.0,0.00019873,2]
[356603556,1742784638237,-404.983062,0.00019873,2]
[356603557,1742784638247,-500.0,0.00019873,2]
[356603558,1742784638257,-500.0,0.00019873,2]
[356603559,1742784638268,-500.0,0.00019873,2]
[356603560,1742784638278,-151.0,0.00019887,2]
[356603561,1742784638287,-609.43169449,0.00019887,2]
[356603562,1742784638297,-600.0,0.00019887,2]
[356603563,1742784638306,-924.38488127,0.00019889,3]
[356603564,1742784638319,-1717.53524544,0.00019889,3]
[356603565,1742784638333,-410.22987329,0.00019889,3]
[356603566,1742784638342,-1526.07,0.00019889,3]
[356603567,1742784638351,-128.50932261,0.00019889,3]
[356603570,1742784640002,-160.0,0.00019196,2]
[356603571,1742784640012,-634.53067739,0.00019889,3]
[356603572,1742784640022,-381.52,0.00019889,3]
[356603573,1742784640032,-190.76,0.00019889,3]
[356603574,1742784640042,-572.28,0.00019889,3]
[356603575,1742784640052,-193.517648,0.0001989,120]
[356603576,1742784640061,-2622.1688245,0.00019898,2]
[356603577,1742784640073,-377.8311755,0.00019898,2]
[356603578,1742784640083,-180.69191799,0.00019899,2]
[356603579,1742784640098,-533.97350762,0.00019899,2]
[356603580,1742784640108,-850.31987898,0.00019899,2]
[356603581,1742784640119,-665.56960281,0.00019899,2]
[356603582,1742784640130,-503.01188397,0.00019899,2]
[356603589,1742784642872,-4977.67845868,0.00019899,2]
[356603595,1742784645836,-9850.89347994,0.00019899,2]
[356603596,1742784645849,-294520.94721422,0.00019899,2]
[356603597,1742785651144,-592.57037,0.000142,5]
[356603598,1742785651166,-268.63,0.000149,2]
[356603599,1742785651188,-2898.9191212,0.00018445,2]
[356603600,1742785651209,-400.0,0.00018523,2]
[356603601,1742785651230,-3324.8159392,0.00018542,2]
[356603602,1742785651253,-160.0,0.00018926,2]
[356603603,1742785651274,-418.2974228,0.00018926,2]
[356603604,1742785651307,-300.0,0.00018931,2]
[356603605,1742785651330,-336.18138155,0.00018932,2]
[356603621,1742785832013,-241.76,0.000156,2]
[356603622,1742785832023,-834.65560377,0.00018916,2]
[356603623,1742785832033,-160.0,0.00018916,2]
[356603624,1742785832043,-160.0,0.00018916,2]
[356603625,1742785832053,-418.2974228,0.00018916,2]
[356603626,1742785832062,-500.0,0.00018942,2]
[356603627,1742785832071,-500.0,0.00019,2]
[356603628,1742785832081,-529.0,0.00019,2]
[356603629,1742785832091,-500.0,0.00019102,2]
[356603630,1742785832101,-457.4848899,0.00019302,2]
[356603631,1742785832111,-471.42812266,0.00019536,2]
[356603632,1742785832121,-12458.93820146,0.00019787,2]
[356603633,1742785832130,-600.0,0.00019788,2]
[356603634,1742785832139,-300.0,0.00019793,2]
[356603635,1742785832148,-500.0,0.00019799,2]
[356603636,1742785832157,-500.0,0.00019799,2]
[356603637,1742785832167,-500.0,0.00019799,2]
[356603638,1742785832176,-500.0,0.00019799,2]
[356603639,1742785832185,-500.0,0.00019799,2]
[356603640,1742785832194,-500.0,0.00019799,2]
[356603641,1742785832203,-237.33358125,0.00019799,2]
[356603642,1742785832212,-150.0,0.000198,2]
[356603643,1742785832221,-150.0,0.000198,30]
[356603644,1742785832231,-197.91682196,0.00019813,2]
[356603645,1742785832246,-347.80789463,0.00019813,2]
[356603646,1742785832255,-622.2,0.00019843,2]
[356603648,1742785832264,-1971.18,0.00019889,3]
[356603650,1742785832273,-985.59,0.00019889,3]
[356603652,1742785832283,-492.79,0.00019889,3]
[356603654,1742785832292,-645.2214,0.00019898,2]
[356603655,1742785832301,-55574.20482482,0.00019899,2]
[356603656,1742785832313,-106229.85503968,0.00019899,2]
[356603657,1742785832326,-8609.39050641,0.00019899,2]
[356603658,1742785832337,-41557.36604339,0.00019899,2]
[356603659,1742785832346,-4253.68245018,0.000199,2]
[356603660,1742785832355,-500.0,0.00019945,2]
[356603661,1742785832365,-500.0,0.00019945,2]
[356603662,1742785832374,-500.0,0.00019945,2]
[356603663,1742785832383,-595.81075309,0.00019945,2]
[356603664,1742785832392,-850.00357061,0.00019952,2]
[356603675,1742785837928,-175.61897495,0.00019952,2]
[356603676,1742785837938,-669.0945918,0.00019953,2]
[356603677,1742785837948,-500.0,0.00019973,2]
[356603678,1742785837957,-500.0,0.00019973,2]
[356603679,1742785837967,-500.0,0.00019973,2]
[356603680,1742785837976,-232.88643325,0.00019973,2]
[356603695,1742785843422,-304.14817569,0.00019786,2]
[356603696,1742785843431,-232.86786145,0.00019945,2]
[356603697,1742785843441,-267.11356675,0.00019973,2]
[356603698,1742785843450,-397.13293296,0.00019973,2]
[356603734,1742785846554,-102.86706704,0.00019973,2]
[356603735,1742785846565,-246.4,0.00019989,3]
[356603736,1742785846575,-357.3327128,0.00019999,2]
[356603737,1742785846585,-3231.24143122,0.00019999,2]
[356603741,1742785965653,1413.07,0.00010959,2]
[356603742,1742785976406,1177.55,0.00010959,2]
[356603743,1742785986954,981.3,0.00010959,2]
[356603744,1742785997436,817.75,0.00010959,2]
[356603745,1742786008187,681.45,0.00010959,2]
[356603746,1742786018766,567.88,0.00010959,2]
[356603747,1742786029261,473.23,0.00010959,2]
[356603748,1742786039822,394.36,0.00010959,2]
[356603749,1742786050338,328.63,0.00010959,2]
[356603750,1742786060894,273.86,0.00010959,2]
[356603751,1742786071372,228.22,0.00010959,2]
[356603752,1742786081874,190.18,0.00010959,2]
[356603753,1742786092403,158.49,0.00010959,2]
[356603754,1742786103013,792.45,0.00010959,2]
[356603759,1742786852142,-2629.18050702,0.000157,2]
[356603760,1742786852163,-247.34,0.000157,2]
[356603761,1742786852185,-163.2439491,0.00016855,2]
[356603762,1742786852207,-1359.663379,0.00017445,2]
[356603763,1742786852228,-300.0,0.00017454,2]
[356603764,1742786852248,-4316.2470069,0.00017455,3]
[356603765,1742786852269,-1420.98768491,0.00017455,2]
[356603799,1742787038015,-240.13,0.000159,2]
[356603800,1742787038025,-300.0,0.00017443,2]
[356603801,1742787038035,-500.0,0.00017443,2]
[356603802,1742787038044,-6735.69,0.00017444,2]
[356603803,1742787038122,-1977.10838155,0.00017444,2]
[356603820,1742787043332,-3746.13981991,0.00017444,2]
[356603821,1742787043343,-160.0,0.00017444,2]
[356603822,1742787043353,-418.2974228,0.00017444,2]
[356603823,1742787043363,-569.51643318,0.00017445,2]
[356603879,1742787046270,-620.18902348,0.00017445,2]
[356603880,1742787046283,-600.0,0.0001749,2]
[356603881,1742787046293,-1165.0840302,0.000175,2]
[356603882,1742787046334,-3596.60669562,0.000175,2]
[356603883,1742787046345,-684.3999998,0.000175,2]
[356603888,1742788045122,-244.75,0.00016,2]
[356603889,1742788045144,-1040.99227456,0.00017445,2]
[356603890,1742788045166,-300.0,0.00017451,2]
[356603891,1742788045186,-8320.40564837,0.00017452,2]
[356603892,1742788045213,-161.00189625,0.00017452,2]
[356603910,1742788232380,-220.28,0.000162,2]
[356603911,1742788232390,-3141.0483742,0.00016472,2]
[356603912,1742788232399,-500.0,0.00017441,2]
[356603913,1742788232409,-500.0,0.00017441,2]
[356603914,1742788232418,-500.0,0.00017441,2]
[356603915,1742788232427,-500.0,0.00017441,2]
[356603916,1742788232437,-500.0,0.00017441,2]
[356603917,1742788232446,-552.13182317,0.00017441,2]
[356603918,1742788232455,-500.0,0.00017441,2]
[356603919,1742788232464,-250.0,0.00017441,2]
[356603920,1742788232474,-12458.93820146,0.00017442,2]
[356603921,1742788232483,-160.0,0.00017442,2]
[356603922,1742788232493,-418.2974228,0.00017442,2]
[356603923,1742788232502,-910.86824024,0.00017445,2]
[356603924,1742788232511,-300.0,0.00017445,2]
[356603925,1742788232520,-160.0,0.00017448,2]
[356603926,1742788232529,-600.0,0.0001749,2]
[356603927,1742788232538,-10556.48910982,0.000175,2]
[356603956,1742788240623,-45049.14946013,0.000175,2]
[356604025,1742789088945,3131.39,0.00014,30]
[356604026,1742789147675,3000.0,0.0001202,10]
[356604027,1742789223102,362.19,0.00010959,2]
[356604028,1742789233865,301.83,0.00010959,2]
[356604029,1742789244699,251.52,0.00010959,2]
[356604030,1742789252144,-158.25871196,0.00014321,2]
[356604031,1742789252168,-150.0,0.00016,2]
[356604032,1742789252192,-275.39,0.000163,2]
[356604033,1742789252216,-1103.933581,0.00016446,2]
[356604034,1742789252241,-3500.46099947,0.000173,120]
[356604035,1742789252265,-797.00971021,0.000174,2]
[356604036,1742789252290,-2835.03460093,0.00017453,2]
[356604037,1742789255496,209.6,0.00010959,2]
[356604038,1742789266042,174.67,0.00010959,2]
[356604039,1742789276730,873.37,0.00010959,2]
[356604070,1742789438364,-316.82,0.000163,2]
[356604071,1742789438375,-697.38349646,0.000174,2]
[356604072,1742789438385,-160.0,0.00017443,2]
[356604073,1742789438394,-300.0,0.00017445,2]
[356604074,1742789438404,-500.0,0.00017445,2]
[356604075,1742789438414,-172.45909146,0.00017445,2]
[356604076,1742789438423,-179.61923247,0.00017445,2]
[356604077,1742789438433,-343.59308124,0.00017445,2]
[356604078,1742789438443,-500.0,0.00017445,2]
[356604079,1742789438452,-500.0,0.00017445,2]
[356604080,1742789438462,-500.0,0.00017445,2]
[356604081,1742789438472,-160.78064532,0.00017445,2]
[356604159,1742790445100,-1217.9342682,0.00016109,2]
[356604160,1742790445122,-5221.2732595,0.00016414,2]
[356604161,1742790445145,-160.0,0.00016439,2]
[356604162,1742790445166,-998.1957809,0.00016448,7]
[356604163,1742790445188,-300.0,0.00016468,2]
[356604164,1742790445212,-2377.60172599,0.00016469,2]
[356604174,1742790569085,-394.0057432,0.00016469,2]
[356604198,1742790635887,-553.20847001,0.00016469,2]
[356604199,1742790635897,-160.0,0.00016795,2]
[356604200,1742790635906,-504.72579813,0.00016974,2]
[356604201,1742790635917,-663.18311077,0.00016974,2]
[356604202,1742790635927,-151.00695528,0.00017158,2]
[356604203,1742790635946,-309.88,0.000172,2]
[356604204,1742790635956,-479.61105745,0.00017247,2]
[356604205,1742790635966,-418.2974228,0.00017383,2]
[356604206,1742790635975,-500.0,0.00017383,2]
[356604207,1742790635984,-589.65672734,0.00017383,2]
[356604208,1742790635994,-500.0,0.00017383,2]
[356604209,1742790636003,-300.0,0.00017383,2]
[356604210,1742790636013,-9623.90360053,0.00017384,2]
[356604211,1742790636022,-780.16848176,0.000174,2]
[356604212,1742790636032,-600.0,0.0001749,2]
[356604213,1742790636041,-163.90655518,0.00017499,2]
[356604214,1742790636050,-188.60909972,0.00017499,2]
[356604215,1742790636060,-36016.67963149,0.000175,2]
[356604295,1742790646634,-115989.54411988,0.000175,2]
[356604296,1742790646646,-538.95,0.000175,2]
[356604297,1742790646655,-622.2,0.00017545,2]
[356604298,1742790646665,-199.0000049,0.0001755,2]
[356604299,1742790646682,-500.0,0.00017573,2]
[356604300,1742790646691,-500.0,0.00017573,2]
[356604301,1742790646700,-500.0,0.00017573,2]
[356604302,1742790646709,-500.0,0.00017573,2]
[356604303,1742790646720,-500.0,0.00017573,2]
[356604304,1742790646729,-500.0,0.00017573,2]
[356604305,1742790646738,-350.0,0.0001758,2]
[356604306,1742790646750,-763.08939709,0.000176,2]
[356604307,1742790646761,-249.995,0.000179,2]
[356604308,1742790646773,-249.995,0.000179,2]
[356604309,1742790646786,-519.064,0.00018,2]
[356604310,1742790646797,-2526.0895,0.00018,7]
[356604311,1742790646810,-2500.0,0.00018,2]
[356604312,1742790646821,-160.0,0.0001823,3]
[356604313,1742790646831,-159.1,0.000186,2]
[356604314,1742790646841,-160.0,0.00018631,2]
[356604315,1742790646853,-160.0,0.00018787,4]
[356604316,1742790646864,-543.275,0.00018889,2]
[356604317,1742790646875,-1922.108,0.00018889,2]
[356604318,1742790646885,-2271.647,0.00018889,2]
[356604319,1742790646897,-249.995,0.00018889,2]
[356604320,1742790646908,-249.995,0.00018889,2]
[356604321,1742790646919,-400.0,0.00018889,2]
[356604322,1742790646930,-151.0,0.00018889,2]
[356604323,1742790646941,-5308.99562064,0.000189,2]
[356604324,1742790646953,-420.0,0.00018978,2]
[356604325,1742790646965,-4999.0,0.00019,2]
[356604326,1742790646976,-249.995,0.00019,2]
[356604327,1742790647000,-249.995,0.00019,2]
[356604328,1742790647014,-500.0,0.00019,2]
[356604329,1742790647026,-151.0,0.00019,2]
[356604330,1742790647037,-850.00357061,0.00019004,2]
[356604331,1742790647049,-3178.90093568,0.00019177,2]
[356604340,1742791647197,-300.0,0.000147,5]
[356604341,1742791647219,-300.0,0.000162,6]
[356604342,1742791647239,-211.51737344,0.00016369,2]
[356604343,1742791647261,-182.885144,0.00016458,2]
[356604344,1742791647281,-204.009864,0.00016511,2]
[356604345,1742791647302,-163.2439491,0.0001653,2]
[356604346,1742791647322,-258.0250584,0.00016739,2]
[356604347,1742791647344,-182.885144,0.00016787,2]
[356604348,1742791647364,-182.885144,0.00017117,2]
[356604349,1742791647384,-303.36,0.000172,2]
[356604350,1742791647406,-418.2974228,0.0001734,2]
[356604351,1742791647426,-1420.98768491,0.0001734,2]
[356604352,1742791647446,-160.0,0.0001734,2]
[356604353,1742791647466,-160.0,0.00017343,2]
[356604354,1742791647487,-300.0,0.00017345,2]
[356604355,1742791647507,-2118.44580302,0.00017346,2]
[356604356,1742791647528,-300.0,0.000177,7]
[356604357,1742791647548,-152.0,0.0001781,2]
[356604358,1742791647570,-500.0,0.00017898,2]
[356604359,1742791647589,-500.0,0.00017898,2]
[356604360,1742791647610,-232.18408081,0.00017898,2]
[356604361,1742791647630,-500.92022272,0.00017898,2]
[356604362,1742791647652,-891.3867429,0.000179,2]
[356604363,1742791650079,-168.23873642,0.000179,2]
[356604398,1742791837672,-4748.8163547,0.00016981,2]
[356604399,1742791837681,-273.03,0.000175,2]
[356604400,1742791837691,-600.0,0.00017904,2]
[356604401,1742791837700,-160.0,0.00017912,2]
[356604402,1742791837710,-418.2974228,0.00017912,2]
[356604403,1742791837719,-300.0,0.00017914,2]
[356604404,1742791837729,-7183.53905713,0.00017915,2]
[356604405,1742791837740,-4333.4,0.00017915,2]
[356604406,1742791837771,-295.07403056,0.00017915,2]
[356604429,1742791842462,-305.93883825,0.00017912,2]
[356604549,1742792713993,202.0,0.0001202,10]
[356604550,1742792850130,-319.57037,0.000147,5]
[356604551,1742792850152,-300.0,0.00017572,2]
[356604552,1742792850174,-500.0,0.00017573,2]
[356604553,1742792850194,-500.0,0.00017573,2]
[356604554,1742792850214,-500.0,0.00017573,2]
[356604555,1742792850234,-500.0,0.00017573,2]
[356604556,1742792850254,-500.0,0.00017573,2]
[356604557,1742792850273,-1177.8,0.00017589,2]
[356604558,1742792850292,-161.30006571,0.00017599,2]
[356604559,1742792850312,-389.58804862,0.00017599,2]
[356604560,1742792850336,-4084.12372229,0.000176,2]
[356604580,1742793037990,-985.66430778,0.00017473,2]
[356604581,1742793038000,-300.0,0.00017499,2]
[356604582,1742793038009,-272.71163403,0.00017499,2]
[356604583,1742793038019,-2786.0013422,0.000175,2]
[356604611,1742793623003,57730.0,0.00015227,120]
[356604614,1742794030146,-1103.933581,0.00016486,2]
[356604615,1742794030167,-597.94244891,0.00016555,2]
[356604616,1742794030189,-300.0,0.00016564,2]
[356604617,1742794030212,-8138.86672189,0.00016565,2]
[356604652,1742794232192,-2771.6074692,0.0001654,2]
[356604653,1742794232202,-2001.40067941,0.00016565,2]
[356604654,1742794232211,-500.0,0.000174,2]
[356604655,1742794232221,-1531.46816773,0.000174,2]
[356604656,1742794232230,-300.0,0.00017472,2]
[356604657,1742794232239,-206.02239071,0.00017473,2]
[356604658,1742794232248,-976.31479939,0.00017473,2]
[356604659,1742794232258,-32239.36733692,0.000175,2]
[356604660,1742794232371,-1839.49482947,0.000175,2]
[356604685,1742794240463,-500.0,0.000174,2]
[356604687,1742794240473,-137071.54061149,0.000175,2]
[356604689,1742794240482,-500.0,0.00017573,2]
[356604691,1742794240491,-500.0,0.00017573,2]
[356604694,1742794240501,-500.0,0.00017573,2]
[356604696,1742794240510,-500.0,0.00017573,2]
[356604697,1742794240519,-500.0,0.00017573,2]
[356604699,1742794240528,-500.0,0.00017573,2]